fUSD/lending_fUSD_20250629
["ID","MTS","AMOUNT","RATE_DAILY","PERIOD"]
[368490424,1751190734929,-490.0,0.00029863,3]
[368490425,1751190734938,-935.65,0.00029863,3]
[368490426,1751190734948,-891.46,0.00029863,3]
[368490427,1751190734958,-490.0,0.00029863,3]
[368490428,1751190734967,-490.0,0.00029863,3]
[368490429,1751190734978,-854.31,0.00029863,3]
[368490430,1751190734988,-4450.47,0.00029863,3]
[368490431,1751190734997,-490.0,0.00029863,3]
[368490432,1751190735006,-528.19,0.00029863,3]
[368490433,1751190735016,-959.78,0.00029863,3]
[368490434,1751190735026,-509.02273023,0.00029863,3]
[368490435,1751190735036,-490.0,0.00029863,3]
[368490436,1751190735045,-766.16,0.00029863,3]
[368490437,1751190735055,-1454.99,0.00029863,3]
[368490438,1751190735064,-1177.8,0.00029863,3]
[368490439,1751190735074,-490.0,0.00029863,3]
[368490440,1751190735083,-1065.99,0.00029863,3]
[368490441,1751190735093,-490.0,0.00029863,3]
[368490442,1751190735103,-921.89,0.00029863,3]
[368490443,1751190735113,-1049.98,0.00029863,3]
[368490444,1751190735123,-490.0,0.00029863,3]
[368490445,1751190735133,-603.29,0.00029863,3]
[368490446,1751190735142,-490.0,0.00029863,3]
[368490447,1751190735152,-1101.22,0.00029863,3]
[368490448,1751190735162,-490.0,0.00029863,3]
[368490449,1751190735173,-555.36,0.00029863,3]
[368490450,1751190735182,-490.0,0.00029863,3]
[368490451,1751190735192,-1690.83,0.00029863,3]
[368490452,1751190735202,-494.25,0.00029863,3]
[368490453,1751190735211,-608.46,0.00029863,3]
[368490454,1751190735220,-916.39,0.00029863,3]
[368490455,1751190735230,-698.3,0.00029863,3]
[368490456,1751190735240,-573.71,0.00029863,3]
[368490457,1751190735250,-572.79392426,0.00029863,3]
[368490458,1751190735260,-1033.94,0.00029863,3]
[368490459,1751190735269,-1394.52,0.00029863,3]
[368490460,1751190735279,-841.15,0.00029863,3]
[368490461,1751190735289,-18048.03,0.00029863,3]
[368490462,1751190735299,-814.68,0.00029863,3]
[368490463,1751190735309,-994.63,0.00029863,3]
[368490464,1751190735318,-817.07,0.00029863,3]
[368490465,1751190735328,-490.0,0.00029863,3]
[368490466,1751190735338,-490.0,0.00029863,3]
[368490467,1751190735348,-490.0,0.00029863,3]
[368490468,1751190735357,-860.32,0.00029863,3]
[368490469,1751190735366,-1083.78,0.00029863,3]
[368490470,1751190735376,-895.73,0.00029863,3]
[368490471,1751190735385,-490.0,0.00029863,3]
[368490472,1751190735395,-1619.71,0.00029863,3]
[368490473,1751190735404,-2039.79,0.00029863,3]
[368490474,1751190735415,-490.0,0.00029863,3]
[368490475,1751190735426,-627.15,0.00029863,3]
[368490476,1751190735435,-490.0,0.00029863,3]
[368490477,1751190735444,-490.0,0.00029863,3]
[368490478,1751190735455,-1338.17,0.00029863,3]
[368490479,1751190735465,-522.56,0.00029863,3]
[368490480,1751190735475,-2735.95,0.00029863,3]
[368490481,1751190735485,-448.1149645,0.00029863,3]
[368490482,1751190735495,-490.0,0.00029863,3]
[368490483,1751190735507,-5045.19,0.00029863,3]
[368490484,1751190735516,-732.19,0.00029863,3]
[368490485,1751190735526,-490.0,0.00029863,3]
[368490486,1751190735756,-490.0,0.00029863,3]
[368490487,1751190735766,-2798.62,0.00029863,3]
[368490488,1751190735776,-490.0,0.00029863,3]
[368490489,1751190735786,-1159.62,0.00029863,3]
[368490490,1751190735795,-557.27,0.00029863,3]
[368490491,1751190735805,-490.0,0.00029863,3]
[368490492,1751190735815,-1735.18,0.00029863,3]
[368490493,1751190735825,-490.0,0.00029863,3]
[368490494,1751190735835,-490.0,0.00029863,3]
[368490495,1751190735844,-795.99,0.00029863,3]
[368490496,1751190735854,-574.13992836,0.00029863,3]
[368490497,1751190735863,-490.0,0.00029863,3]
[368490498,1751190735873,-2632.4,0.00029863,3]
[368490499,1751190735882,-2676.96,0.00029863,3]
[368490500,1751190735892,-890.5,0.00029863,3]
[368490501,1751190735902,-815.43,0.00029863,3]
[368490502,1751190735911,-490.0,0.00029863,3]
[368490503,1751190735921,-2287.33,0.00029863,3]
[368490504,1751190735930,-490.0,0.00029863,3]
[368490505,1751190735939,-7199.68,0.00029863,3]
[368490506,1751190735949,-1083.86,0.00029863,3]
[368490507,1751190735958,-490.0,0.00029863,3]
[368490508,1751190735968,-1198.65,0.00029863,3]
[368490509,1751190735978,-564.45,0.00029863,3]
[368490511,1751190735988,-4926.93,0.00029863,3]
[368490512,1751190735998,-2111.85,0.00029863,3]
[368490513,1751190736009,-2504.77,0.00029863,3]
[368490514,1751190736019,-670.5,0.00029863,3]
[368490515,1751190736028,-9168.68,0.00029863,3]
[368490516,1751190736038,-1466.04,0.00029863,3]
[368490517,1751190736048,-995.99,0.00029863,3]
[368490518,1751190736058,-148479.19,0.00029863,3]
[368490519,1751190736068,-1110.23,0.00029863,3]
[368490520,1751190736078,-884.61,0.00029863,3]
[368490521,1751190736087,-3927.92,0.00029863,3]
[368490522,1751190736097,-1262.58,0.00029863,3]
[368490523,1751190736107,-490.0,0.00029863,3]
[368490524,1751190736118,-1550.57,0.00029863,3]
[368490525,1751190736128,-490.0,0.00029863,3]
[368490526,1751190736138,-4423.72,0.00029863,3]
[368490527,1751190736147,-799.02,0.00029863,3]
[368490528,1751190736156,-401.17545743,0.00029863,3]
[368490529,1751190736166,-1420.75,0.00029863,3]
[368490530,1751190736175,-490.0,0.00029863,3]
[368490531,1751190736185,-2359.81,0.00029863,3]
[368490532,1751190736195,-612.29,0.00029863,3]
[368490533,1751190736204,-2220.09,0.00029863,3]
[368490534,1751190736213,-490.0,0.00029863,3]
[368490535,1751190736223,-490.0,0.00029863,3]
[368490536,1751190736232,-1116.8,0.00029863,3]
[368490537,1751190736242,-850.38,0.00029863,3]
[368490538,1751190736252,-1635.41,0.00029863,3]
[368490539,1751190736261,-495.37,0.00029863,3]
[368490540,1751190736270,-1906.36,0.00029863,3]
[368490541,1751190736279,-2198.76,0.00029863,3]
[368490542,1751190736289,-1730.15,0.00029863,3]
[368490543,1751190736298,-567.10253225,0.00029863,3]
[368490544,1751190736307,-490.0,0.00029863,3]
[368490545,1751190736317,-1477.82,0.00029863,3]
[368490546,1751190736326,-3000.74,0.00029863,3]
[368490547,1751190736336,-924.29,0.00029863,3]
[368490548,1751190736345,-818.08,0.00029863,3]
[368490549,1751190736355,-590.95,0.00029863,3]
[368490550,1751190736364,-1537.71,0.00029863,3]
[368490551,1751190736374,-1894.35,0.00029863,3]
[368490552,1751190736384,-1565.54,0.00029863,3]
[368490553,1751190736394,-490.0,0.00029863,3]
[368490554,1751190736403,-707.33,0.00029863,3]
[368490555,1751190736414,-490.0,0.00029863,3]
[368490556,1751190736426,-854.62,0.00029863,3]
[368490557,1751190736435,-1990.15,0.00029863,3]
[368490558,1751190736445,-2120.63,0.00029863,3]
[368490559,1751190736454,-490.0,0.00029863,3]
[368490560,1751190736465,-490.0,0.00029863,3]
[368490561,1751190736475,-501.24,0.00029863,3]
[368490562,1751190736484,-1303.39,0.00029863,3]
[368490563,1751190736497,-490.0,0.00029863,3]
[368490564,1751190736507,-490.0,0.00029863,3]
[368490565,1751190736516,-490.0,0.00029863,3]
[368490566,1751190736526,-490.0,0.00029863,3]
[368490567,1751190736536,-2057.83,0.00029863,3]
[368490568,1751190736546,-1066.81,0.00029863,3]
[368490569,1751190736555,-1078.53,0.00029863,3]
[368490570,1751190736564,-2549.31,0.00029863,3]
[368490571,1751190736575,-1514.01,0.00029863,3]
[368490572,1751190736585,-829.05,0.00029863,3]
[368490573,1751190736594,-403.43558002,0.00029863,3]
[368490574,1751190736604,-490.0,0.00029863,3]
[368490575,1751190736613,-709.69,0.00029863,3]
[368490576,1751190736622,-490.0,0.00029863,3]
[368490577,1751190736631,-1413.24,0.00029863,3]
[368490578,1751190736641,-1126.76,0.00029863,3]
[368490579,1751190736651,-499.7,0.00029863,3]
[368490580,1751190736660,-537.43441804,0.00029863,3]
[368490581,1751190736670,-7138.85,0.00029863,3]
[368490582,1751190736679,-1903.95,0.00029863,3]
[368490583,1751190736689,-490.0,0.00029863,3]
[368490584,1751190736698,-1687.9,0.00029863,3]
[368490585,1751190736708,-1199.32,0.00029863,3]
[368490586,1751190736718,-605.34,0.00029863,3]
[368490587,1751190736728,-490.0,0.00029863,3]
[368490588,1751190736738,-624.57,0.00029863,3]
[368490589,1751190736748,-1080.18,0.00029863,3]
[368490590,1751190736757,-490.0,0.00029863,3]
[368490591,1751190736767,-1902.03,0.00029863,3]
[368490592,1751190736777,-490.0,0.00029863,3]
[368490593,1751190736787,-685.5,0.00029863,3]
[368490594,1751190736796,-985.04,0.00029863,3]
[368490595,1751190736806,-809.87,0.00029863,3]
[368490596,1751190736815,-2277.33,0.00029863,3]
[368490597,1751190736825,-3579.22,0.00029863,3]
[368490598,1751190736835,-490.0,0.00029863,3]
[368490599,1751190736844,-1369.16,0.00029863,3]
[368490600,1751190736854,-1202.94,0.00029863,3]
[368490601,1751190736864,-1406.03,0.00029863,3]
[368490602,1751190736874,-490.0,0.00029863,3]
[368490603,1751190736884,-2322.41,0.00029863,3]
[368490604,1751190736894,-11425.24,0.00029863,3]
[368490605,1751190736904,-936.2,0.00029863,3]
[368490606,1751190736914,-892.36,0.00029863,3]
[368490607,1751190736924,-7389.77,0.00029863,3]
[368490608,1751190736933,-2363.6,0.00029863,3]
[368490609,1751190736944,-1344.12,0.00029863,3]
[368490610,1751190736954,-490.0,0.00029863,3]
[368490611,1751190736963,-490.0,0.00029863,3]
[368490612,1751190736974,-490.0,0.00029863,3]
[368490613,1751190736983,-1010.37,0.00029863,3]
[368490614,1751190736992,-3943.02,0.00029863,3]
[368490615,1751190737002,-719.55,0.00029863,3]
[368490616,1751190737011,-962.36,0.00029863,3]
[368490617,1751190737021,-2127.37,0.00029863,3]
[368490618,1751190737031,-490.0,0.00029863,3]
[368490619,1751190737041,-3378.38,0.00029863,3]
[368490620,1751190737051,-1167.04,0.00029863,3]
[368490621,1751190737061,-2325.84,0.00029863,3]
[368490622,1751190737071,-1319.73,0.00029863,3]
[368490623,1751190737081,-592.44785377,0.00029863,3]
[368490624,1751190737090,-509.95,0.00029863,3]
[368490625,1751190737100,-613.68,0.00029863,3]
[368490626,1751190737110,-2715.66,0.00029863,3]
[368490627,1751190737120,-490.0,0.00029863,3]
[368490628,1751190737131,-532.12,0.00029863,3]
[368490629,1751190737141,-562.19585887,0.00029863,3]
[368490630,1751190737151,-490.0,0.00029863,3]
[368490631,1751190737161,-1294.86,0.00029863,3]
[368490632,1751190737171,-1043.95,0.00029863,3]
[368490633,1751190737181,-1355.41,0.00029863,3]
[368490634,1751190737191,-2207.5,0.00029863,3]
[368490635,1751190737200,-4741.41,0.00029863,3]
[368490636,1751190737210,-545.36,0.00029863,3]
[368490637,1751190737219,-490.0,0.00029863,3]
[368490638,1751190737230,-1588.45,0.00029863,3]
[368490639,1751190737240,-490.0,0.00029863,3]
[368490640,1751190737249,-490.0,0.00029863,3]
[368490641,1751190737258,-826.61,0.00029863,3]
[368490642,1751190737267,-3228.0,0.00029863,3]
[368490643,1751190737277,-490.0,0.00029863,3]
[368490644,1751190737286,-886.06,0.00029863,3]
[368490645,1751190737295,-9205.97,0.00029863,3]
[368490646,1751190737305,-1424.96,0.00029863,3]
[368490647,1751190737314,-1170.72,0.00029863,3]
[368490648,1751190737323,-490.0,0.00029863,3]
[368490649,1751190737333,-246.70109513,0.00029863,3]
[368490650,1751190737343,-2306.21,0.00029863,3]
[368490651,1751190737352,-3412.3,0.00029863,3]
[368490652,1751190737361,-728.26,0.00029863,3]
[368490653,1751190737371,-1625.19,0.00029863,3]
[368490654,1751190737381,-490.0,0.00029863,3]
[368490655,1751190737390,-1125.2,0.00029863,3]
[368490656,1751190737399,-736.63,0.00029863,3]
[368490657,1751190737409,-490.0,0.00029863,3]
[368490658,1751190737422,-1386.0,0.00029863,3]
[368490659,1751190737431,-1530.28,0.00029863,3]
[368490660,1751190737440,-1073.8,0.00029863,3]
[368490661,1751190737449,-2006.57,0.00029863,3]
[368490662,1751190737460,-490.0,0.00029863,3]
[368490663,1751190737469,-2091.51,0.00029863,3]
[368490664,1751190737479,-2126.77,0.00029863,3]
[368490665,1751190737489,-1779.52,0.00029863,3]
[368490666,1751190737499,-490.0,0.00029863,3]
[368490667,1751190737508,-490.0,0.00029863,3]
[368490668,1751190737517,-1673.45,0.00029863,3]
[368490669,1751190737526,-1303.39,0.00029863,3]
[368490670,1751190737536,-776.8,0.00029863,3]
[368490671,1751190737546,-2452.49,0.00029863,3]
[368490672,1751190737555,-4507.51,0.00029863,3]
[368490673,1751190737564,-2000.1,0.00029863,3]
[368490674,1751190737574,-490.0,0.00029863,3]
[368490675,1751190737584,-3480.9,0.00029863,3]
[368490676,1751190737594,-1935.08,0.00029863,3]
[368490677,1751190737603,-516.82474106,0.00029863,3]
[368490678,1751190737613,-1632.66,0.00029863,3]
[368490679,1751190737622,-1569.37,0.00029863,3]
[368490680,1751190737632,-2530.56,0.00029863,3]
[368490681,1751190737641,-490.0,0.00029863,3]
[368490682,1751190737650,-1489.85,0.00029863,3]
[368490683,1751190737660,-490.0,0.00029863,3]
[368490684,1751190737669,-490.0,0.00029863,3]
[368490685,1751190737678,-1193.32,0.00029863,3]
[368490686,1751190737688,-490.0,0.00029863,3]
[368490687,1751190737697,-2419.87,0.00029863,3]
[368490688,1751190737707,-588.25,0.00029863,3]
[368490689,1751190737716,-1993.35,0.00029863,3]
[368490690,1751190737725,-3522.67,0.00029863,3]
[368490691,1751190737735,-1690.76,0.00029863,3]
[368490692,1751190737744,-2018.73,0.00029863,3]
[368490693,1751190737753,-2243.02,0.00029863,3]
[368490694,1751190737762,-490.0,0.00029863,3]
[368490695,1751190737771,-2069.08,0.00029863,3]
[368490696,1751190737780,-490.0,0.00029863,3]
[368490697,1751190737790,-1621.16,0.00029863,3]
[368490698,1751190737799,-490.0,0.00029863,3]
[368490699,1751190737808,-2803.72,0.00029863,3]
[368490700,1751190737818,-490.0,0.00029863,3]
[368490701,1751190737827,-305.12964999,0.00029863,3]
[368490702,1751190737837,-490.0,0.00029863,3]
[368490703,1751190737846,-490.0,0.00029863,3]
[368490704,1751190737855,-1156.58,0.00029863,3]
[368490705,1751190737865,-697.23,0.00029863,3]
[368490706,1751190737874,-490.0,0.00029863,3]
[368490707,1751190737883,-2344.83,0.00029863,3]
[368490708,1751190737892,-490.0,0.00029863,3]
[368490709,1751190737901,-896.46,0.00029863,3]
[368490710,1751190737910,-2317.49,0.00029863,3]
[368490711,1751190737919,-1697.89,0.00029863,3]
[368490712,1751190737929,-490.0,0.00029863,3]
[368490713,1751190737938,-490.0,0.00029863,3]
[368490714,1751190737948,-1455.99,0.00029863,3]
[368490715,1751190737959,-2847.6,0.00029863,3]
[368490716,1751190737969,-490.0,0.00029863,3]
[368490717,1751190737979,-1196.0,0.00029863,3]
[368490718,1751190737989,-490.0,0.00029863,3]
[368490719,1751190737999,-4069.2,0.00029863,3]
[368490720,1751190738010,-1620.63,0.00029863,3]
[368490721,1751190738020,-24643.72,0.00029863,3]
[368490722,1751190738030,-498.07,0.00029863,3]
[368490723,1751190738040,-499.82,0.00029863,3]
[368490724,1751190738050,-3762.98,0.00029863,3]
[368490725,1751190738060,-1069.72,0.00029863,3]
[368490726,1751190738070,-725.1,0.00029863,3]
[368490727,1751190738080,-4782.64,0.00029863,3]
[368490728,1751190738090,-1100.83,0.00029863,3]
[368490729,1751190738100,-1824.13,0.00029863,3]
[368490730,1751190738110,-2504.1,0.00029863,3]
[368490731,1751190738119,-1607.63,0.00029863,3]
[368490732,1751190738129,-1132.25,0.00029863,3]
[368490733,1751190738139,-11678.75,0.00029863,3]
[368490734,1751190738149,-3607.16,0.00029863,3]
[368490735,1751190738160,-490.0,0.00029863,3]
[368490736,1751190738170,-674.39,0.00029863,3]
[368490737,1751190738278,-2388.21,0.00029863,3]
[368490738,1751190738288,-490.0,0.00029863,3]
[368490739,1751190738298,-632.01,0.00029863,3]
[368490740,1751190738308,-3749.55,0.00029863,3]
[368490741,1751190738317,-2478.96,0.00029863,3]
[368490742,1751190738327,-536.71,0.00029863,3]
[368490743,1751190738337,-1798.53,0.00029863,3]
[368490744,1751190738347,-1629.68,0.00029863,3]
[368490745,1751190738357,-3221.5,0.00029863,3]
[368490746,1751190738367,-490.0,0.00029863,3]
[368490747,1751190738378,-1535.71,0.00029863,3]
[368490748,1751190738387,-548.24,0.00029863,3]
[368490749,1751190738398,-2263.99,0.00029863,3]
[368490750,1751190738408,-1677.32,0.00029863,3]
[368490751,1751190738421,-6718.76,0.00029863,3]
[368490752,1751190738431,-1322.58,0.00029863,3]
[368490753,1751190738441,-18559.3,0.00029863,3]
[368490754,1751190738452,-857.93,0.00029863,3]
[368490755,1751190738461,-553.18,0.00029863,3]
[368490756,1751190738471,-490.0,0.00029863,3]
[368490757,1751190738481,-987.81,0.00029863,3]
[368490758,1751190738490,-490.0,0.00029863,3]
[368490759,1751190738499,-2586.37,0.00029863,3]
[368490760,1751190738509,-1263.2,0.00029863,3]
[368490761,1751190738519,-1943.16,0.00029863,3]
[368490762,1751190738529,-3862.63,0.00029863,3]
[368490763,1751190738538,-698.11,0.00029863,3]
[368490764,1751190738547,-826.74,0.00029863,3]
[368490765,1751190738557,-490.0,0.00029863,3]
[368490766,1751190738567,-490.0,0.00029863,3]
[368490767,1751190738576,-490.0,0.00029863,3]
[368490768,1751190738586,-4122.27,0.00029863,3]
[368490769,1751190738595,-490.0,0.00029863,3]
[368490770,1751190738605,-490.0,0.00029863,3]
[368490771,1751190738615,-4529.09,0.00029863,3]
[368490772,1751190738624,-490.0,0.00029863,3]
[368490773,1751190738635,-490.0,0.00029863,3]
[368490774,1751190738644,-1385.92,0.00029863,3]
[368490775,1751190738654,-1552.69,0.00029863,3]
[368490776,1751190738663,-5320.1,0.00029863,3]
[368490777,1751190738672,-490.0,0.00029863,3]
[368490778,1751190738682,-2723.89,0.00029863,3]
[368490779,1751190738691,-620.43,0.00029863,3]
[368490780,1751190738700,-1307.14,0.00029863,3]
[368490781,1751190738709,-2896.25,0.00029863,3]
[368490782,1751190738719,-2347.57,0.00029863,3]
[368490783,1751190738730,-919.31,0.00029863,3]
[368490784,1751190738739,-1874.39,0.00029863,3]
[368490785,1751190738749,-2024.74,0.00029863,3]
[368490786,1751190738758,-5682.59,0.00029863,3]
[368490787,1751190738768,-490.0,0.00029863,3]
[368490788,1751190738777,-490.0,0.00029863,3]
[368490789,1751190738787,-209.39114161,0.00029863,3]
[368490790,1751190738796,-2104.31,0.00029863,3]
[368490791,1751190738806,-626.13,0.00029863,3]
[368490792,1751190738816,-1968.64,0.00029863,3]
[368490793,1751190738826,-2133.2,0.00029863,3]
[368490794,1751190738835,-181.40672946,0.00029863,3]
[368490795,1751190738845,-510.54892915,0.00029863,3]
[368490796,1751190738855,-1770.11,0.00029863,3]
[368490797,1751190738865,-1764.06,0.00029863,3]
[368490798,1751190738875,-490.0,0.00029863,3]
[368490799,1751190738884,-700.52,0.00029863,3]
[368490800,1751190738894,-217.99982821,0.00029863,3]
[368490801,1751190738903,-1730.13,0.00029863,3]
[368490802,1751190738912,-2165.68,0.00029863,3]
[368490803,1751190738922,-883.4,0.00029863,3]
[368490804,1751190738933,-513.72,0.00029863,3]
[368490805,1751190738943,-1926.75,0.00029863,3]
[368490806,1751190738953,-5921.12,0.00029863,3]
[368490807,1751190738962,-490.0,0.00029863,3]
[368490808,1751190738972,-490.0,0.00029863,3]
[368490809,1751190738981,-2141.99,0.00029863,3]
[368490810,1751190738990,-490.0,0.00029863,3]
[368490811,1751190739000,-2043.04,0.00029863,3]
[368490812,1751190739011,-631.01,0.00029863,3]
[368490813,1751190739021,-855.58,0.00029863,3]
[368490814,1751190739030,-696.89,0.00029863,3]
[368490815,1751190739040,-1625.9,0.00029863,3]
[368490816,1751190739050,-3241.41,0.00029863,3]
[368490817,1751190739060,-3866.16,0.00029863,3]
[368490818,1751190739070,-4543.11,0.00029863,3]
[368490819,1751190739080,-2087.25,0.00029863,3]
[368490820,1751190739090,-1891.34,0.00029863,3]
[368490821,1751190739100,-569.82,0.00029863,3]
[368490822,1751190739110,-490.0,0.00029863,3]
[368490823,1751190739119,-1931.12,0.00029863,3]
[368490824,1751190739129,-366.631363,0.00029863,3]
[368490825,1751190739139,-490.0,0.00029863,3]
[368490826,1751190739149,-1948.57,0.00029863,3]
[368490827,1751190739159,-1323.16,0.00029863,3]
[368490828,1751190739169,-971.22,0.00029863,3]
[368490829,1751190739179,-6890.33,0.00029863,3]
[368490830,1751190739188,-961.28,0.00029863,3]
[368490831,1751190739198,-490.0,0.00029863,3]
[368490832,1751190739208,-1740.09,0.00029863,3]
[368490833,1751190739218,-1509.17,0.00029863,3]
[368490834,1751190739228,-2526.68,0.00029863,3]
[368490835,1751190739238,-490.0,0.00029863,3]
[368490836,1751190739247,-1923.32,0.00029863,3]
[368490837,1751190739257,-490.0,0.00029863,3]
[368490838,1751190739266,-600.0,0.00029863,3]
[368490839,1751190739275,-1670.68424236,0.00029863,2]
[368490840,1751190739285,-1670.68424236,0.00029863,2]
[368490841,1751190739294,-503.67649437,0.00029864,5]
[368490842,1751190739304,-2500.0,0.00029864,5]
[368490843,1751190739314,-2500.0,0.00029864,5]
[368490844,1751190739323,-9421.9790334,0.0002988,2]
[368490845,1751190739334,-4970.7484111,0.0002988,2]
[368490846,1751190739344,-593.9,0.00029881,2]
[368490847,1751190739353,-25574.39415483,0.000299,2]
[368490848,1751190739363,-2500.0,0.000299,10]
[368490849,1751190739372,-208.0,0.0002995,30]
[368490850,1751190739382,-600.0,0.0002995,3]
[368490851,1751190739391,-600.0,0.0002995,3]
[368490852,1751190739401,-600.0,0.0002995,3]
[368490853,1751190739411,-600.0,0.0002995,3]
[368490854,1751190739424,-600.0,0.0002995,3]
[368490855,1751190739434,-600.0,0.0002995,3]
[368490856,1751190739443,-600.0,0.0002995,3]
[368490857,1751190739453,-600.0,0.0002995,3]
[368490858,1751190739462,-600.0,0.0002995,3]
[368490859,1751190739472,-600.0,0.0002995,3]
[368490860,1751190739481,-600.0,0.0002995,3]
[368490861,1751190739491,-600.0,0.0002995,3]
[368490862,1751190739501,-600.0,0.0002995,3]
[368490863,1751190739511,-600.0,0.0002995,3]
[368490864,1751190739521,-600.0,0.0002995,3]
[368490865,1751190739530,-600.0,0.0002995,3]
[368490866,1751190739540,-600.0,0.0002995,3]
[368490867,1751190739550,-600.0,0.0002995,3]
[368490868,1751190739559,-231.0,0.0002996,2]
[368490869,1751190739568,-211.0,0.0002996,2]
[368490870,1751190739576,-214.0,0.0002996,2]
[368490871,1751190739586,-212.0,0.0002996,2]
[368490872,1751190739595,-209.0,0.0002997,2]
[368490873,1751190739604,-150.0,0.00029985,2]
[368490874,1751190739613,-150.0,0.00029985,2]
[368490875,1751190739622,-150.0,0.00029985,2]
[368490876,1751190739630,-150.0,0.00029985,2]
[368490877,1751190739639,-150.0,0.00029985,2]
[368490878,1751190739649,-2000.0,0.00029985,2]
[368490879,1751190739658,-99888.74081768,0.0003,2]
[368490880,1751190739666,-14022.16240692,0.0003,5]
[368490881,1751190739675,-500.0,0.0003,2]
[368490882,1751190739684,-200.0,0.0003,120]
[368490883,1751190739694,-10000.0,0.0003,31]
[368490884,1751190739703,-62009.69,0.0003,30]
[368490885,1751190739713,-1000.0,0.0003,2]
[368490886,1751190739723,-1250.0,0.0003,120]
[368490887,1751190739733,-17135.0,0.0003,30]
[368490888,1751190739743,-2100.0,0.0003,30]
[368490889,1751190739752,-200.0,0.0003,7]
[368490890,1751190739762,-7542.0,0.0003,3]
[368490891,1751190739771,-600.0,0.0003,3]
[368490892,1751190739781,-2515.572027,0.0003,2]
[368490893,1751190739790,-4000.0,0.0003,4]
[368490894,1751190739799,-2043.46130184,0.00030003,22]
[368490895,1751190739809,-150.0,0.00030007,7]
[368490896,1751190739818,-150.0,0.00030007,7]
[368490897,1751190739830,-600.0,0.00030007,3]
[368490898,1751190739839,-600.0,0.00030007,3]
[368490899,1751190739849,-600.0,0.00030007,3]
[368490900,1751190739859,-434.89,0.00030007,3]
[368490901,1751190739869,-600.0,0.00030007,3]
[368490902,1751190739878,-600.0,0.00030007,3]
[368490903,1751190739887,-600.0,0.00030007,3]
[368490904,1751190739896,-434.89,0.00030007,3]
[368490905,1751190739906,-600.0,0.00030007,3]
[368490906,1751190739916,-600.0,0.00030007,3]
[368490907,1751190739926,-600.0,0.00030007,3]
[368490908,1751190739936,-435.03971446,0.00030007,3]
[368490909,1751190739945,-225.281,0.00030009,7]
[368490910,1751190739956,-223.0315306,0.00030019,2]
[368490911,1751190739966,-434.89,0.00030019,3]
[368490912,1751190739977,-600.0,0.00030019,3]
[368490913,1751190739986,-600.0,0.00030019,3]
[368490914,1751190739996,-600.0,0.00030019,3]
[368490915,1751190740006,-434.89,0.00030019,3]
[368490916,1751190740016,-600.0,0.00030019,3]
[368490917,1751190740026,-600.0,0.00030019,3]
[368490918,1751190740036,-600.0,0.00030019,3]
[368490919,1751190740045,-434.89,0.00030019,3]
[368490920,1751190740056,-600.0,0.00030019,3]
[368490921,1751190740066,-600.0,0.00030019,3]
[368490922,1751190740076,-600.0,0.00030019,3]
[368490923,1751190740086,-434.89,0.00030019,3]
[368490924,1751190740095,-600.0,0.00030019,3]